{"text_format":"1","workbook":"xlsx","n_sheets":7,"sheets":["МЕНЮ","ЗАВОДСКОЙ","МПС","выданный мпс","Лист для копирования","данные","ссылки"],"not_rendered":{"charts":0,"images":0,"macros":1,"external_links":0,"defined_names":11,"comments":0,"pivot_tables":0},"unopened":[],"bounds":{"document_bytes":16777216,"sheet_cells":100000,"rows_first":2000,"rows_last":500,"rows_between":2000,"halvings":0,"cell_chars":16384,"cell_head_chars":4096},"cells_cut":0,"cells_raw":0,"read":"whole","date_system":"1900"}

{"sheet":"МЕНЮ","index":0,"n_rows":36,"n_cols":11,"rows_kept":36,"cut":false,"hidden":false,"merged":[[0,6,0,7],[32,0,32,1],[33,0,33,1],[30,0,30,1],[2,3,3,3],[0,0,1,1],[0,3,0,4],[5,3,6,4],[0,9,0,10],[10,10,11,10],[10,9,11,9],[31,0,31,1],[34,0,34,1],[36,0,36,1]]}
["Расположение заводского подвижного состава",null,null,"Форма добавления МПС в базу документа",null,null,"Справка по МПС на территории предприятия",null,null,"Сокращения"]
[null,null,null,"Введите полный № МПС →→→",null,null,"песок",{"$f":"COUNTIF(МПС!A8:'МПС'!O193,\"песок\")","v":0},null,"кр","крытый вагон"]
[{"$f":"HYPERLINK(\"#Заводской!A1:D18\",\"ЛЦ - 1 (Шихтовой)\")","v":"ЛЦ - 1 (Шихтовой)"},{"$f":"HYPERLINK(\"#Заводской!E122:h137\",\"3й путь (гармет)\")","v":"3й путь (гармет)"},null,"при необходимости, через пробел, укажите вид единицы.",null,null,"песок в мешках",{"$f":"COUNTIF(МПС!A8:'МПС'!O193,\"песок в мешках\")","v":0},null,"цист","цистерна"]
[{"$f":"HYPERLINK(\"#Заводской!E1:h11\",\"ЛЦ - 1 (БАМ)\")","v":"ЛЦ - 1 (БАМ)"},{"$f":"HYPERLINK(\"#Заводской!a122:d141\",\"5й тупик (гармет)\")","v":"5й тупик (гармет)"},null,null,null,null,"кварцевый песок",{"$f":"COUNTIF(МПС!A8:'МПС'!O193,\"песок кварцевый\")","v":0},null,"боч","платформа с бочками (шихта)"]
[{"$f":"HYPERLINK(\"#Заводской!I1:l17\",\"ЛЦ - 1 (Выбивки)\")","v":"ЛЦ - 1 (Выбивки)"},{"$f":"HYPERLINK(\"#Заводской!M124:p150\",\"Склад металлов\")","v":"Склад металлов"},null,null,null,null,"бентонит серпухов",{"$f":"COUNTIF(МПС!A8:'МПС'!O193,\"бентонит серпухов\")","v":0},null,"пл. пол","плохой пол на платформе"]
[{"$f":"HYPERLINK(\"#Заводской!M1:p21\",\"Старый склад\")","v":"Старый склад"},{"$f":"HYPERLINK(\"#Заводской!I149:l161\",\"Опоки\")","v":"Опоки"},null,"Расположение МПС",null,null,"бентонит казах",{"$f":"COUNTIF(МПС!A8:'МПС'!O193,\"бентонит казах\")","v":0},null,"хор. пол","хороший пол на платформе"]
[{"$f":"HYPERLINK(\"#Заводской!A19:d36\",\"6ой путь (по шихтовому)\")","v":"6ой путь (по шихтовому)"},{"$f":"HYPERLINK(\"#Заводской!E138:h164\",\"НБО - 340 (пресс ножни)\")","v":"НБО - 340 (пресс ножни)"},null,null,null,null,"стекло",{"$f":"COUNTIF(МПС!A8:'МПС'!O193,\"стекло\")","v":0},null,"литье склд.сбыта","литье склада сбыта (склад на колесах)"]
[{"$f":"HYPERLINK(\"#Заводской!E12:h27\",\"5й путь (по БАМу)\")","v":"5й путь (по БАМу)"},{"$f":"HYPERLINK(\"#Заводской!M151:p159\",\"По канаве чугуна \")","v":"По канаве чугуна "},null,{"$f":"HYPERLINK(\"#МПС!A1:E27\",\"8ой путь (весовая)\")","v":"8ой путь (весовая)"},{"$f":"HYPERLINK(\"#МПС!A107:E132\",\"Буры\")","v":"Буры"},null,"м/лом",{"$f":"COUNTIF(МПС!A8:'МПС'!O193,\"м/лом\")","v":0},null,"мульд","платформа с настилом под мульды"]
[{"$f":"HYPERLINK(\"#Заводской!E28:h32\",\"10й тупик (по магазину)\")","v":"10й тупик (по магазину)"},{"$f":"HYPERLINK(\"#Заводской!I133:l148\",\"Склад сбыта\")","v":"Склад сбыта"},null,{"$f":"HYPERLINK(\"#МПС!f1:j29\",\"2я выстовочная\")","v":"2я выстовочная"},{"$f":"HYPERLINK(\"#МПС!f107:j136\",\"Сушка песка\")","v":"Сушка песка"},null,"порожний под погр-ку",{"$f":"COUNTIF(МПС!A8:'МПС'!O193,\"порожний\")","v":0},null,"не конт ","контующийся д-р который не контуется"]
[{"$f":"HYPERLINK(\"#Заводской!A37:d66\",\"7ой путь\")","v":"7ой путь"},{"$f":"HYPERLINK(\"#Заводской!A164:d179\",\"5й путь (длинная - гармет)\")","v":"5й путь (длинная - гармет)"},null,{"$f":"HYPERLINK(\"#МПС!k1:o38\",\"3я выстовочная\")","v":"3я выстовочная"},{"$f":"HYPERLINK(\"#МПС!k107:o135\",\"9ый путь\")","v":"9ый путь"},null,"известняк",{"$f":"COUNTIF(МПС!A8:'МПС'!O193,\"известняк\")","v":0},null,"конт","конующийся д-р в рабочем состоянии"]
[{"$f":"HYPERLINK(\"#Заводской!E37h63\",\"8ой путь (весовая)\")","v":"8ой путь (весовая)"},{"$f":"HYPERLINK(\"#Заводской!E165:h201\",\"6ой путь (копровая)\")","v":"6ой путь (копровая)"},null,{"$f":"HYPERLINK(\"#МПС!A39:E76\",\"4я выстовочная\")","v":"4я выстовочная"},{"$f":"HYPERLINK(\"#МПС!A137:E152\",\"Склад сбыта\")","v":"Склад сбыта"},null,"кирпич",{"$f":"COUNTIF(МПС!A8:'МПС'!O193,\"кирпич\")","v":0},null,"земдел","земледелочный д-р работает по земледелке"]
[{"$f":"HYPERLINK(\"#Заводской!I18:l36\",\"ЛЦ - 1 (Земледелка)\")","v":"ЛЦ - 1 (Земледелка)"},{"$f":"HYPERLINK(\"#Заводской!i162:l181\",\"Пилорама\")","v":"Пилорама"},null,{"$f":"HYPERLINK(\"#МПС!f39:j63\",\"Старая весовая\")","v":"Старая весовая"},{"$f":"HYPERLINK(\"#МПС!f137:j163\",\"Склад металлов\")","v":"Склад металлов"}]
[{"$f":"HYPERLINK(\"#Заводской!M22:p33\",\"0й путь\")","v":"0й путь"},{"$f":"HYPERLINK(\"#Заводской!M160:p173\",\"Склад огнеупоров\")","v":"Склад огнеупоров"},null,{"$f":"HYPERLINK(\"#МПС!k39:o61\",\"Котельная\")","v":"Котельная"},{"$f":"HYPERLINK(\"#МПС!k137:o173\",\"6ой путь (копровая)\")","v":"6ой путь (копровая)"},null,"всего с грузом",{"$f":"COUNTIF(МПС!A8:'МПС'!O193,\"ожидает выгрузки\")+COUNTIF(МПС!B8:'МПС'!G193,\"выгрузка\")+COUNTIF(МПС!B8:'МПС'!G193,\"ожидание зачистки\")+COUNTIF(МПС!B8:'МПС'!G193,\"зачистка\")+COUNTIF(МПС!B8:'МПС'!G193,\"ожидание выдачи\")","v":0}]
[{"$f":"HYPERLINK(\"#Заводской!M34:p57\",\"4ый путь (длинная)\")","v":"4ый путь (длинная)"},{"$f":"HYPERLINK(\"#Заводской!I182:l201\",\"по мусорной (за проходом склада огнеупроров)\")","v":"по мусорной (за проходом склада огнеупроров)"},null,{"$f":"HYPERLINK(\"#МПС!A77:E105\",\"Канава известника\")","v":"Канава известника"},{"$f":"HYPERLINK(\"#МПС!A174:E187\",\"Склад огнеупоров\")","v":"Склад огнеупоров"},null,"из них:"]
[{"$f":"HYPERLINK(\"#Заводской!I37:l49\",\"30 путь\")","v":"30 путь"},{"$f":"HYPERLINK(\"#Заводской!M174:p197\",\"Депо\")","v":"Депо"},null,{"$f":"HYPERLINK(\"#МПС!f77:j106\",\"Объезд канавы известника\")","v":"Объезд канавы известника"},{"$f":"HYPERLINK(\"#МПС!f174:j193\",\"по мусорной (за проходом склада огнеупроров)\")","v":"по мусорной (за проходом склада огнеупроров)"},null,"ожидает выгрузки",{"$f":"COUNTIF(МПС!A8:'МПС'!O193,\"ожидание выгрузки\")","v":0}]
[{"$f":"HYPERLINK(\"#Заводской!I50:l63\",\"4ый путь (короткая)\")","v":"4ый путь (короткая)"},{"$f":"HYPERLINK(\"#Заводской!A180:d201\",\"5й путь (со стороны мусорки)\")","v":"5й путь (со стороны мусорки)"},null,{"$f":"HYPERLINK(\"#МПС!k77:o106\",\"Старый нефтеслив\")","v":"Старый нефтеслив"},null,null,"выгрузка",{"$f":"COUNTIF(МПС!A8:'МПС'!O193,\"выгрузка\")","v":0}]
[{"$f":"HYPERLINK(\"#Заводской!M58:p63\",\"РИЦ\")","v":"РИЦ"},{"$f":"HYPERLINK(\"#Заводской!A202:d220\",\"ЛЦ -1 (западная сторона) Разливочный\")","v":"ЛЦ -1 (западная сторона) Разливочный"},null,null,null,null,"ожидает зачистки",{"$f":"COUNTIF(МПС!A8:'МПС'!O193,\"ожидает зачистки\")","v":0}]
[{"$f":"HYPERLINK(\"#Заводской!A67:d89\",\"Котельная\")","v":"Котельная"},{"$f":"HYPERLINK(\"#Заводской!E202:h223\",\"ЛЦ -1 (западная сторона) Склад бентонита\")","v":"ЛЦ -1 (западная сторона) Склад бентонита"},null,{"$f":"HYPERLINK(\"#Меню!g1:h18\",\"Cправка по МПС\")","v":"Cправка по МПС"},null,null,"зачистка",{"$f":"COUNTIF(МПС!A8:'МПС'!O193,\"зачистка\")","v":0}]
[{"$f":"HYPERLINK(\"#Заводской!E64:h92\",\"Канава известника\")","v":"Канава известника"},{"$f":"HYPERLINK(\"#Заводской!I202:l220\",\"ЛЦ -1 (западная сторона) Шихтовой (короткая)\")","v":"ЛЦ -1 (западная сторона) Шихтовой (короткая)"},null,{"$f":"HYPERLINK(\"#Меню!j1:k18\",\"Сокращения\")","v":"Сокращения"},null,null,"ожидание выдачи",{"$f":"COUNTIF(МПС!A8:'МПС'!O193,\"ожидание выдачи\")","v":0}]
[{"$f":"HYPERLINK(\"#Заводской!I64:l93\",\"Объезд канавы известника\")","v":"Объезд канавы известника"},{"$f":"HYPERLINK(\"#Заводской!M202:p214\",\"ЛЦ -1 (западная сторона) Шихтовой (длинная)\")","v":"ЛЦ -1 (западная сторона) Шихтовой (длинная)"},null,{"$f":"HYPERLINK(\"#Меню!a30:b41\",\"Примечания\")","v":"Примечания"}]
[{"$f":"HYPERLINK(\"#Заводской!M64:p93\",\"Старый нефтеслив\")","v":"Старый нефтеслив"},{"$f":"HYPERLINK(\"#Заводской!A251:d279\",\"2я выстовочная\")","v":"2я выстовочная"}]
[{"$f":"HYPERLINK(\"#Заводской!A90:d116\",\"Пандус\")","v":"Пандус"},{"$f":"HYPERLINK(\"#Заводской!e251:h288\",\"3я выстовочная\")","v":"3я выстовочная"}]
[{"$f":"HYPERLINK(\"#Заводской!E93:h121\",\"9й путь\")","v":"9й путь"},{"$f":"HYPERLINK(\"#Заводской!i251:l288\",\"4я выстовочная\")","v":"4я выстовочная"}]
[{"$f":"HYPERLINK(\"#Заводской!i94:l106\",\"ЛЦ - 2\")","v":"ЛЦ - 2"},{"$f":"HYPERLINK(\"#Заводской!m251:p280\",\"Старая весовая\")","v":"Старая весовая"}]
[{"$f":"HYPERLINK(\"#Заводской!M94:p123\",\"Сушка песка\")","v":"Сушка песка"},{"$f":"HYPERLINK(\"#Заводской!m283:p298\",\"Склад пружин (путь за диспетчерской)\")","v":"Склад пружин (путь за диспетчерской)"}]
[{"$f":"HYPERLINK(\"#Заводской!I107:l132\",\"Буры\")","v":"Буры"},{"$f":"HYPERLINK(\"#Заводской!a226:d248\",\"Копер (левая)\")","v":"Копер (левая)"}]
[{"$f":"HYPERLINK(\"#Заводской!a142:d163\",\"2й путь (гармет)\")","v":"2й путь (гармет)"},{"$f":"HYPERLINK(\"#Заводской!e226:h249\",\"Копер (правая) по прямой\")","v":"Копер (правая) по прямой"}]
[]
[]
[]
["Примечания"]
["После выгрузки известника в ЛЦ 1 полувагон подать на канаву известника под зачистку"]
["Бентонит станция \"Казах\" для ЛЦ - 3"]
["Бентонит станция \"Серпухов\" для ЛЦ - 1 в огнеупоры к вагону +2 платформы"]
["Огнеупоры в крытых вагонах - кирпич"]
["Силикат глыбы - стекло"]

{"sheet":"ЗАВОДСКОЙ","index":1,"n_rows":298,"n_cols":20,"rows_kept":298,"cut":false,"hidden":false,"merged":[[89,0,90,3],[33,12,34,15],[49,8,50,11],[57,12,58,15],[36,4,37,7],[36,8,37,11],[69,4,69,7],[77,4,77,7],[63,4,64,7],[42,4,42,7],[50,4,50,7],[87,8,87,11],[69,12,69,15],[79,12,79,15],[63,8,64,11],[63,12,64,15],[86,4,86,7],[65,11,66,11],[65,10,66,10],[69,8,69,11],[78,8,78,11],[72,0,72,3],[42,0,42,3],[80,0,80,3],[11,4,12,7],[19,9,19,11],[17,8,18,11],[18,0,19,3],[39,12,39,15],[24,0,24,3],[47,12,47,15],[0,16,1,19],[6,8,6,11],[9,8,9,11],[2,10,3,11],[21,12,22,15],[0,0,1,3],[0,4,1,7],[0,8,1,11],[0,12,1,15],[13,8,13,11],[15,8,15,11],[13,5,13,6],[20,2,20,3],[21,2,21,3],[66,0,67,3],[51,0,51,3],[27,4,28,7],[36,0,37,3],[31,0,31,3],[154,4,154,7],[93,0,93,3],[137,12,137,15],[141,0,142,3],[137,4,138,7],[148,8,149,11],[150,12,151,15],[121,0,122,3],[131,0,131,3],[121,4,122,7],[132,8,133,11],[123,12,124,15],[95,0,95,3],[98,0,98,3],[98,4,98,7],[94,5,95,5],[94,6,95,6],[99,12,99,15],[92,4,93,7],[93,8,94,11],[93,12,94,15],[111,12,111,15],[117,12,117,15],[188,12,188,15],[194,12,194,15],[187,8,188,11],[250,0,251,3],[250,4,251,7],[170,4,170,7],[159,12,160,15],[170,12,170,15],[177,12,177,15],[107,12,107,15],[240,0,240,3],[238,4,238,7],[177,4,177,7],[106,8,107,11],[123,8,123,11],[108,4,108,7],[163,0,164,3],[164,4,165,7],[161,8,162,11],[250,12,251,15],[179,0,180,3],[173,12,174,15],[179,12,179,15],[183,12,183,15],[201,0,202,3],[201,4,202,7],[206,4,206,7],[210,4,210,7],[219,4,219,7],[222,4,222,7],[207,8,208,11],[207,12,208,15],[213,12,213,15],[219,8,219,11],[225,0,226,3],[225,4,226,7],[231,4,231,7],[231,0,231,3],[214,0,214,3],[250,8,251,11],[278,0,278,3],[287,4,287,7],[287,8,287,11],[279,12,279,15],[282,12,283,15],[256,12,256,15],[254,8,254,11],[254,12,254,15],[268,0,268,3],[275,4,275,7],[275,8,275,11],[268,12,268,15],[254,0,254,3],[254,4,254,7],[256,0,256,3],[256,4,256,7],[256,8,256,11]]}
["ЛЦ - 1 (Шихтовой)",null,null,null,"ЛЦ - 1 (БАМ)",null,null,null,"ЛЦ - 1 (Выбивки)",null,null,null,"Старый склад сбыта"]
[]
["всего","10","9 в зоне крана",null,"всего",3,null,null,"всего","7","экспедиция -2, от экспедиции до выбивок -3, 2я выбивка -1, 1я выбивка -1",null,"всего","13",null,null,"всего"]
["факт",{"$f":"COUNTA(B7:B18)","v":6},null,null,"факт",{"$f":"COUNTA(F7:F11)","v":0},null,null,"факт",{"$f":"COUNTA(J8:J9,J11:J13,J15,J17)","v":3},null,null,"факт",{"$f":"COUNTA(N7:N21)","v":0},null,null,"факт"]
[]
["ВИД  ↓","№ ЕД  ↓","ГРУЗ","ВЕС","ВИД  ↓","№ ЕД  ↓","ГРУЗ","ВЕС","ВИД  ↓","№ ЕД  ↓","ГРУЗ","ВЕС","ВИД  ↓","№ ЕД  ↓","ГРУЗ","ВЕС","ВИД  ↓","№ ЕД  ↓","ГРУЗ","ВЕС"]
["нет",null,null,null,"нет",null,null,null,"экспедиция"]
["нет",null,null,null,"нет",null,null,null,"платформа","441","опоки под упоры"]
["нет",null,null,null,"нет",null,null,null,"нет"]
["нет",null,null,null,"нет",null,null,null,"от экспедиции до выбивок"]
["нет",null,null,null,"нет",null,null,null,"нет"]
["нет",null,null,null,"5й путь (по БАМу)",null,null,null,"нет"]
["полувагон","2528","не известно",null,null,null,null,null,"нет"]
["платформа","256 хор. пол","литье склд.сбыта",null,"всего","8 от дор-ки до переезда",null,null,"2я выбивка"]
["полувагон","2356","глина красная",null,"факт",{"$f":"COUNTA(F18:F27)","v":0},null,null,"платформа","224 хор. пол"]
["платформа","430 мульд","мульды пор",null,null,null,null,null,"1я выбивка"]
["платформа","252 ?","литье склд.сбыта",null,"ВИД  ↓","№ ЕД  ↓","ГРУЗ","ВЕС","думпкар","505","литники"]
["контующийся","5613 конт","мусор",null,null,null,null,null,"ЛЦ - 1 (Земледелка)"]
["6ой путь (по шихтовому)"]
[null,null,null,null,null,null,null,null,"всего","хер знает, но ходит 5, информация Аношко"]
["всего","4 до перезда","2 от ворот ших-го до шлагбаума",null,"нет",null,null,null,"факт",{"$f":"COUNTA(J24:J36)","v":5}]
["факт",{"$f":"COUNTA(B26:B31)","v":0},{"$f":"COUNTA(B33:B36)","v":0},null,null,null,null,null,null,null,null,null,"0й путь"]
[null,null,null,null,null,null,null,null,"ВИД  ↓","№ ЕД  ↓","ГРУЗ","ВЕС"]
["ВИД  ↓","№ ЕД  ↓","ГРУЗ","ВЕС",null,null,null,null,null,null,null,null,"всего","4"]
["от прохода до переезда ",null,null,null,null,null,null,null,null,null,null,null,"факт",{"$f":"COUNTA(N28:N33)","v":2}]
["нет",null,null,null,"нет"]
["нет",null,null,null,"нет",null,null,null,null,null,null,null,"ВИД  ↓","№ ЕД  ↓","ГРУЗ","ВЕС"]
["нет",null,null,null,"10й тупик (по магазину)",null,null,null,null,null,null,null,"платформа","339 пл. пол","шпалы"]
[null,null,null,null,null,null,null,null,null,null,null,null,"контующийся","518 ?"]
[null,null,null,null,"всего","2"]
["нет",null,null,null,"факт",{"$f":"COUNTA(F34:F36)","v":0}]
["от ворот ших-го до шлагбаума",null,null,null,null,null,null,null,"контующийся","55908842 земдел",null,null,"нет"]
[null,null,null,null,"ВИД  ↓","№ ЕД  ↓","ГРУЗ","ВЕС","контующийся","55906481 земдел"]
[null,null,null,null,"нет",null,null,null,"контующийся","55906572 земдел",null,null,"4ый путь (длинная)"]
[null,null,null,null,"нет",null,null,null,"контующийся","55906549 земдел"]
["нет",null,null,null,"нет",null,null,null,"контующийся","5611 земледел",null,null,"всего","5 до переезда","7 после переезда"]
["7ой путь ",null,null,null,"8ой путь (весовая)",null,null,null,"30 путь",null,null,null,"факт",{"$f":"COUNTA(N41:N47)","v":0},{"$f":"COUNTA(N49:N57)","v":2}]
[]
["всего","за проходом: 5","по трубам 12",null,"всего","до весов 5","за дор-ой 10",null,"всего","5",null,null,"ВИД  ↓","№ ЕД  ↓","ГРУЗ","ВЕС"]
["факт",{"$f":"COUNTA(B44:B51)","v":0},{"$f":"COUNTA(B53:B66)","v":0},null,"факт",{"$f":"COUNTA(F44:F50)","v":0},{"$f":"COUNTA(F52:F63)","v":0},null,"факт",{"$f":"COUNTA(J43:J49)","v":4},null,null,"до переезда"]
[]
["ВИД  ↓","№ ЕД  ↓","ГРУЗ","ВЕС","ВИД  ↓","№ ЕД  ↓","ГРУЗ","ВЕС","ВИД  ↓","№ ЕД  ↓","ГРУЗ","ВЕС"]
["за проходом 6ой до переезда",null,null,null,"до весов",null,null,null,"гармет","436 боч бам","шихта"]
["нет",null,null,null,null,null,null,null,"гармет","442 боч бам","шихта"]
[]
[]
[]
[null,null,null,null,null,null,null,null,"платформа","223 пл. пол","ковши литейные",null,"после переезда"]
[null,null,null,null,null,null,null,null,"полувагон","2527",null,null,"нет"]
[null,null,null,null,null,null,null,null,"4ый путь (короткая)",null,null,null,"нет"]
[null,null,null,null,"за дорожкой"]
["по трубам",null,null,null,null,null,null,null,"всего","6"]
[null,null,null,null,null,null,null,null,"факт",{"$f":"COUNTA(J56:J63)","v":6}]
[]
[null,null,null,null,null,null,null,null,"ВИД  ↓","№ ЕД  ↓","ГРУЗ","ВЕС","платформа","005 пл. пол"]
[null,null,null,null,null,null,null,null,"платформа","336","мет.констр",null,"платформа","227 пл. пол","грейфер"]
[null,null,null,null,null,null,null,null,"платформа","6125 пл. пол",null,null,"нет"]
[null,null,null,null,null,null,null,null,"платформа","1341 пл. пол",null,null,"РИЦ"]
[null,null,null,null,null,null,null,null,"платформа","280 пл. пол","рельс"]
[null,null,null,null,null,null,null,null,"платформа","421 пл. пол",null,null,"всего","1","факт",{"$f":"COUNTA(N62:N63)","v":1}]
[null,null,null,null,null,null,null,null,"хоппер","451",null,null,"ВИД  ↓","№ ЕД  ↓","ГРУЗ","ВЕС"]
[null,null,null,null,null,null,null,null,null,null,null,null,"платформа","259","мет.констр"]
[]
[null,null,null,null,"Канава известника",null,null,null,"Объезд канавы известника",null,null,null,"Старый нефтеслив"]
[]
[null,null,null,null,"всего","в зоне крана 6","до переезда 5","за канавой 3","всего","до перезда 6 ","от заправки до переезда 6 запад","за канавой за переездом 3","всего","до переезда 7","за переездом 10"]
["Котельная",null,null,null,"факт",{"$f":"COUNTA(F79:F86)","v":0},{"$f":"COUNTA(F71:F77)","v":0},{"$f":"COUNTA(F88:F92)","v":1},null,null,null,null,"факт",{"$f":"COUNTA(N71:N79)","v":0},{"$f":"COUNTA(N81:N93)","v":0}]
[null,null,null,null,null,null,null,null,"факт",{"$f":"COUNTA(J71:J78)","v":0},{"$f":"COUNTA(J80:J87)","v":0},{"$f":"COUNTA(J89:J93)","v":0}]
["всего","до дор-ки 5","за дор-ой 6",null,"ВИД  ↓","№ ЕД  ↓","ГРУЗ","ВЕС","ВИД  ↓","№ ЕД  ↓","ГРУЗ","ВЕС","ВИД  ↓","№ ЕД  ↓","ГРУЗ","ВЕС"]
["факт",{"$f":"COUNTA(B74:B80)","v":0},{"$f":"COUNTA(B82:B89)","v":0},null,"до переезда",null,null,null,"до переезда",null,null,null,"до переезда"]
[null,null,null,null,"нет"]
["ВИД  ↓","№ ЕД  ↓","ГРУЗ","ВЕС"]
["до дорожки"]
["нет",null,null,null,null,null,null,null,"нет"]
[]
[]
[]
[null,null,null,null," канава (в зоне крана)"]
[null,null,null,null,null,null,null,null,"от заправки до переезда (в западную сторону)"]
[null,null,null,null,null,null,null,null,null,null,null,null,"за переездом"]
["за дорожкой"]
[]
[]
[]
[]
[]
[null,null,null,null,"за канавой (за переездом, западная сторона)"]
["нет",null,null,null,"контующийся","5610 ?",null,null,"за переездом западная сторона"]
[]
["Пандус"]
[null,null,null,null,"нет"]
["всего","1","по пандусу 15"]
["факт",{"$f":"COUNTA(B97:B98)","v":0},{"$f":"COUNTA(B100:B116)","v":0},null,"9ый путь",null,null,null,null,null,null,null,"нет"]
["Расстановка единиц указывается с хвоста состава",null,null,null,null,null,null,null,"ЛЦ - 2",null,null,null,"Сушка песка"]
["ВИД  ↑","№ ЕД  ↑","ГРУЗ","ВЕС","всего","от прохода пандуса до переезда 7","по ЛЦ -2 за проходом сушки песка до переезда 10"]
["пандус",null,null,null,null,null,null,null,"всего","5",null,null,"всего","5","3","3"]
[null,null,null,null,"факт",{"$f":"COUNTA(F100:F108)","v":0},{"$f":"COUNTA(F110:F121)","v":0},null,"факт",{"$f":"COUNTA(J100:J106)","v":0},null,null,"факт",{"$f":"COUNTA(N101:N107)","v":0},{"$f":"COUNTA(N109:N111)","v":0},{"$f":"COUNTA(N113:N117)","v":2}]
["нет",null,null,null,"ВИД  ↓","№ ЕД  ↓","ГРУЗ","ВЕС",null,null,null,null,"всего ","3","факт",{"$f":"COUNTA(N119:N123)","v":0}]
["по пандусу (от переезда до пандуса)",null,null,null,"от прохода пандуса до переезда",null,null,null,"ВИД  ↓","№ ЕД  ↓","ГРУЗ","ВЕС","ВИД  ↓","№ ЕД  ↓","ГРУЗ","ВЕС"]
[null,null,null,null,null,null,null,null,null,null,null,null,"правая сушки песка (5)"]
[]
[]
[]
[]
[]
[]
[null,null,null,null,null,null,null,null,"Буры "]
[null,null,null,null,null,null,null,null,null,null,null,null,"левая сушки песка (3)"]
[null,null,null,null,"по ЛЦ -2 за проходом сушки песка до переезда ",null,null,null,"всего","9","по бурам 6"]
[null,null,null,null,null,null,null,null,"факт",{"$f":"COUNTA(J113:J123)","v":0},{"$f":"COUNTA(J125:J132)","v":1}]
[]
[null,null,null,null,null,null,null,null,"ВИД  ↓","№ ЕД  ↓","ГРУЗ","ВЕС","по левой (3)"]
[null,null,null,null,null,null,null,null,null,null,null,null,"контующийся","513 ?"]
[null,null,null,null,null,null,null,null,null,null,null,null,"контующийся","493 ?"]
[]
[]
["ВИД  ↑","№ ЕД  ↑","ГРУЗ","ВЕС"]
[null,null,null,null,null,null,null,null,null,null,null,null,"по правой (3)"]
[]
[]
[]
["5й тупик (гармет)",null,null,null,"3й путь (гармет)"]
[null,null,null,null,null,null,null,null,null,null,null,null,"нет"]
["всего","2","по тупику 7",null,"всего","до переезда 8",null,null,"по бурам ",null,null,null,"Склад металлов"]
["факт",{"$f":"COUNTA(B128:B131)","v":0},{"$f":"COUNTA(B133:B141)","v":1},null,"факт",{"$f":"COUNTA(F128:F137)","v":3},null,null,"контующийся","55908800 конт"]
[null,null,null,null,null,null,null,null,null,null,null,null,"всего","6","по складу 10"]
["ВИД  ↓","№ ЕД  ↓","ГРУЗ","ВЕС","ВИД  ↓","№ ЕД  ↓","ГРУЗ","ВЕС",null,null,null,null,"факт",{"$f":"COUNTA(N130:N137)","v":0},{"$f":"COUNTA(N139:N150)","v":0}]
[]
[null,null,null,null,null,null,null,null,null,null,null,null,"ВИД  ↓","№ ЕД  ↓","ГРУЗ","ВЕС"]
[]
[]
["по тупику"]
["платформа","254",null,null,null,null,null,null,"Склад сбыта"]
[]
[null,null,null,null,"контующийся","5632 не конт",null,null,"всего","8"]
[null,null,null,null,"полувагон","2521","рельс для гармет",null,"факт",{"$f":"COUNTA(J139:J148)","v":1}]
[null,null,null,null,"думпкар","337","железоотделитель","взв-н(а)"]
[null,null,null,null,"НБО - 340 (пресс ножни)",null,null,null,"ВИД  ↓","№ ЕД  ↓","ГРУЗ","ВЕС","по складу от прохода до переезда"]
[null,null,null,null,null,null,null,null,"платформа","16125 хор. пол","литье склд.сбыта"]
[null,null,null,null,"всего","9","по правой 7",null,"нет"]
[null,null,null,null,"факт",{"$f":"COUNTA(F144:F154)","v":1},{"$f":"COUNTA(F156:F164)","v":6}]
["2ой путь (Гармет)"]
[null,null,null,null,"ВИД  ↓","№ ЕД  ↓","ГРУЗ","ВЕС"]
["всего","14",null,null,"платформа","0250 пл. пол","плита(ы)"]
["факт",{"$f":"COUNTA(B148:B163)","v":1},null,null,"нет"]
[]
["ВИД  ↓","№ ЕД  ↓","ГРУЗ","ВЕС"]
[]
[null,null,null,null,null,null,null,null,"Опоки"]
[]
[null,null,null,null,null,null,null,null,"всего","5",null,null,"По канаве чугуна "]
[null,null,null,null,null,null,null,null,"факт",{"$f":"COUNTA(J155:J161)","v":1}]
[null,null,null,null,null,null,null,null,null,null,null,null,"всего","1"]
[null,null,null,null,null,null,null,null,"ВИД  ↓","№ ЕД  ↓","ГРУЗ","ВЕС","факт",{"$f":"COUNTA(N157:N159)","v":0}]
[null,null,null,null,"по правой",null,null,null,"полувагон","2529","не известно"]
[null,null,null,null,"платформа","343 мульд","мульды пор",null,null,null,null,null,"ВИД  ↓","№ ЕД  ↓","ГРУЗ","ВЕС"]
[null,null,null,null,"платформа","1352 мульд","мульды пор"]
[null,null,null,null,"платформа","467 мульд","мульды пор"]
[null,null,null,null,"платформа","426 мульд","мульды пор"]
[null,null,null,null,"платформа","3337 мульд","мульды пор",null,null,null,null,null,"Склад огнеупоров"]
[null,null,null,null,"платформа","438 мульд","мульды пор"]
[null,null,null,null,null,null,null,null,"Пилорама",null,null,null,"всего","3","по складу 1"]
["контующийся","621 не конт",null,null,null,null,null,null,null,null,null,null,"факт",{"$f":"COUNTA(N166:N170)","v":0},{"$f":"COUNTA(N172:N173)","v":0}]
["5й путь (длинная - гармет)",null,null,null,null,null,null,null,"всего","17"]
[null,null,null,null,"6ой путь (копровая)",null,null,null,"факт",{"$f":"COUNTA(J168:J187)","v":14},null,null,"ВИД  ↓","№ ЕД  ↓","ГРУЗ","ВЕС"]
["всего","8"]
["факт",{"$f":"COUNTA(B170:B179)","v":0},null,null,"всего","до тропинки 4","от тропинки 22",null,"ВИД  ↓","№ ЕД  ↓","ГРУЗ","ВЕС"]
[null,null,null,null,"факт",{"$f":"COUNTA(F172:F177)","v":0},{"$f":"COUNTA(F179:F201)","v":3},null,"дрезина","дрезина",null,null,"нет"]
["ВИД  ↓","№ ЕД  ↓","ГРУЗ","ВЕС",null,null,null,null,"платформа","377"]
["нет",null,null,null,"ВИД  ↓","№ ЕД  ↓","ГРУЗ","ВЕС","платформа","281","шпалы"]
[null,null,null,null,"от прохода до тропинки",null,null,null,"платформа","248","бочки",null,"по складу "]
[null,null,null,null,"нет",null,null,null,"хоппер","452"]
[null,null,null,null,"нет",null,null,null,"платформа","251"]
[null,null,null,null,"нет",null,null,null,"контующийся","5633 не конт",null,null,"Депо"]
[null,null,null,null,null,null,null,null,"контующийся","0505 не конт"]
[null,null,null,null,null,null,null,null,"полувагон","2530",null,null,"всего"]
[null,null,null,null,null,null,null,null,"полувагон","2365",null,null,"факт",{"$f":"COUNTA(N181:N183,N185:N188,N190:N194,N196:N197)","v":0}]
[null,null,null,null,"от тропинки",null,null,null,"платформа","0289","ж/д звено",null,"расположение путей слева направо"]
[null,null,null,null,"платформа","0295 пл. пол","ж/д звено",null,"платформа","209","скрап-шлак",null,"ВИД  ↓","№ ЕД  ↓","ГРУЗ","ВЕС"]
["5й путь (со стороны мусорки)",null,null,null,"контующийся","5608 не конт",null,null,"контующийся","5634 не конт",null,null,"тупик (2ед)"]
[null,null,null,null,"платформа","0282 пл. пол","шпалы",null,"платформа","267","ящики (кроватки)"]
["всего","14"]
["факт",{"$f":"COUNTA(B186:B201)","v":9}]
[null,null,null,null,null,null,null,null,"нет",null,null,null,"1 путь (2ед)"]
["ВИД  ↓","№ ЕД  ↓","ГРУЗ","ВЕС",null,null,null,null,"нет"]
["платформа","262","плита изделие"]
["платформа","1351 мульд.разут"]
["полувагон","2522","шпалы",null,null,null,null,null,"по мусорной (за проходом склада огнеупроров)"]
["платформа","257",null,null,null,null,null,null,null,null,null,null,"2 путь (3ед)"]
["цистерна","51232437",null,null,null,null,null,null,"всего"]
["платформа","432","ж/д звено",null,null,null,null,null,"факт",{"$f":"COUNTA(J194:J207)","v":0}]
["платформа","380","бак от теп-за+ мусор"]
["платформа","266 мульд.слом",null,null,null,null,null,null,"ВИД  ↓","№ ЕД  ↓","ГРУЗ","ВЕС"]
["контующийся","779 не конт"]
[null,null,null,null,null,null,null,null,null,null,null,null,"3 путь (1ед)"]
[]
[]
[]
[]
[]
[]
["ЛЦ -1 (западная сторона) Разливочный",null,null,null,"ЛЦ -1 (западная сторона) Склад бентонита"]
[]
["всего","5","по ЛЦ-1 3",null,"всего","1","по складу 6"]
["факт",{"$f":"COUNTA(B208:B214)","v":2},{"$f":"COUNTA(B216:B220)","v":0},null,"факт",{"$f":"COUNTA(F209:F210)","v":0},{"$f":"COUNTA(F212:F219,F221)","v":1}]
[]
["ВИД  ↓","№ ЕД  ↓","ГРУЗ","ВЕС","Расстановка единиц указывается с хвоста состава"]
[null,null,null,null,"ВИД  ↑","№ ЕД  ↑","ГРУЗ","ВЕС","ЛЦ -1 (западная сторона) Шихтовой (короткая)",null,null,null,"ЛЦ -1 (западная сторона) Шихтовой (длинная)"]
[]
["нет",null,null,null,null,null,null,null,"всего","4","по шит-му 4",null,"всего","4"]
[null,null,null,null,"по складу",null,null,null,"факт",{"$f":"COUNTA(J214:J219)","v":0},{"$f":"COUNTA(J221:J226)","v":0},null,"факт",{"$f":"COUNTA(N215:N220)","v":0}]
[null,null,null,null,"нет"]
["контующийся","517 конт","мусор",null,null,null,null,null,"ВИД  ↓","№ ЕД  ↓","ГРУЗ","ВЕС","ВИД  ↓","№ ЕД  ↓","ГРУЗ","ВЕС"]
["думпкар","516","скрап-шлак",null,null,null,null,null,null,null,null,null,"по длинной до переезда"]
["по разливочному",null,null,null,null,null,null,null,null,null,null,null,"нет"]
[]
[]
[]
["нет"]
[null,null,null,null,"цистерна под сливом жидкого стекла",null,null,null,"по шихтовому"]
[null,null,null,null,"цистерна","004",null,"взв-н(а)"]
[null,null,null,null,"ВИД  ↑","№ ЕД  ↑","ГРУЗ","ВЕС"]
[null,null,null,null,"Расстановка единиц указывается с хвоста состава"]
[]
[]
["Копер (левая)",null,null,null,"Копер (правая) по прямой"]
[]
["всего","до переезда 6","в зоне крана 5",null,"всего","до переезда 4","по бункерам 8"]
["факт",{"$f":"COUNTA(B233:B240)","v":0},{"$f":"COUNTA(B242:B248)","v":0},null,"факт",{"$f":"COUNTA(B208:B214)","v":2},{"$f":"COUNTA(F240:F249)","v":0}]
[]
["ВИД  ↓","№ ЕД  ↓","ГРУЗ","ВЕС","ВИД  ↓","№ ЕД  ↓","ГРУЗ","ВЕС"]
["до переезда",null,null,null,"до переезда"]
["нет"]
["нет"]
[]
[]
["нет",null,null,null,"нет"]
[]
[null,null,null,null,"по бункерам за переездом"]
[]
["в зоне крана"]
[]
["нет"]
["нет"]
["нет"]
[]
[]
[]
[]
[]
["2я выстовочная",null,null,null,"3я выстовочная",null,null,null,"4я выстовочная",null,null,null,"Старая весовая"]
[]
["всего","15","до дорожки 9","за дорожкой 6","всего","22","до дорожки 15","за дорожкой 7 ","всего","23","до дорожки 15","за дорожкой 8","всего","15","до дорожки 8","за дорожкой 7"]
["факт",{"$f":"COUNTA(B258:B268,B270:B277)","v":6},{"$f":"COUNTA(B258:B268)","v":6},{"$f":"COUNTA(B270:B277)","v":0},"факт",{"$f":"COUNTA(F258:F275,F277:F286)","v":5},{"$f":"COUNTA(F258:F275)","v":0},{"$f":"COUNTA(F277:F286)","v":5},"факт",{"$f":"COUNTA(J258:J275,J277:J286)","v":0},{"$f":"COUNTA(J258:J275)","v":0},{"$f":"COUNTA(J277:J286)","v":0},"факт",{"$f":"COUNTA(N258:N268,N270:N278)","v":9},{"$f":"COUNTA(N258:N268)","v":8},{"$f":"COUNTA(N270:N278)","v":1}]
["расстановка единиц от выездных ворот",null,null,null,"расстановка единиц от выездных ворот",null,null,null,"расстановка единиц от выездных ворот",null,null,null,"расстановка единиц от выездных ворот"]
["ВИД  ↓","№ ЕД  ↓","ГРУЗ","ВЕС","ВИД  ↓","№ ЕД  ↓","ГРУЗ","ВЕС","ВИД  ↓","№ ЕД  ↓","ГРУЗ","ВЕС","ВИД  ↓","№ ЕД  ↓","ГРУЗ","ВЕС"]
["до дорожки",null,null,null,"до дорожки",null,null,null,"до дорожки",null,null,null,"до дорожки"]
["платформа","219 хор. пол","литье склд.сбыта",null,"нет",null,null,null,"нет",null,null,null,"платформа","391 мульд","мульды пор"]
["нет",null,null,null,"нет",null,null,null,null,null,null,null,"платформа","429 мульд","мульды пор"]
["нет",null,null,null,null,null,null,null,null,null,null,null,"платформа","390 мульд","мульды пор"]
["платформа","3338 хор. пол","литье склд.сбыта",null,null,null,null,null,null,null,null,null,"платформа","1015 мульд","мульды пор"]
["платформа","245 хор. пол","литье склд.сбыта",null,"нет",null,null,null,null,null,null,null,"платформа","415 мульд","мульды пор"]
["платформа","272 хор. пол","литье склд.сбыта",null,null,null,null,null,null,null,null,null,"полувагон","2363","мульды пор"]
["платформа","5208  хор. пол","литье склд.сбыта",null,null,null,null,null,null,null,null,null,"платформа","283 пл.пол","рельс"]
["платформа","1349 хор. пол","литье склд.сбыта",null,null,null,null,null,null,null,null,null,"полувагон","61113635 БМЗ"]
[null,null,null,null,"нет",null,null,null,"нет",null,null,null,"нет"]
[null,null,null,null,null,null,null,null,null,null,null,null,"нет"]
[null,null,null,null,null,null,null,null,null,null,null,null,"нет"]
["за дорожкой",null,null,null,null,null,null,null,null,null,null,null,"за дорожкой"]
[null,null,null,null,"нет",null,null,null,null,null,null,null,"полувагон","61113585 БМЗ"]
[]
[]
[]
[]
[]
[null,null,null,null,"за дорожкой",null,null,null,"за дорожкой",null,null,null,"нет"]
[null,null,null,null,null,null,null,null,null,null,null,null,"нет"]
["ВИД  ↑","№ ЕД  ↑","ГРУЗ","ВЕС","полувагон","1328","литье склд.сбыта",null,"нет",null,null,null,"нет"]
["со стороны депо",null,null,null,"платформа","6182 хор. пол","литье склд.сбыта",null,null,null,null,null,"ВИД  ↑","№ ЕД  ↑","ГРУЗ","ВЕС"]
[null,null,null,null,"полувагон","063","литье склд.сбыта",null,null,null,null,null,"со стороны депо"]
[null,null,null,null,"платформа","288 хор. пол","литье склд.сбыта"]
[null,null,null,null,"полувагон","2364","литье склд.сбыта"]
[null,null,null,null,null,null,null,null,null,null,null,null,"Склад пружин (путь за диспетчерской)"]
[]
[null,null,null,null,null,null,null,null,null,null,null,null,"всего","8"]
[null,null,null,null,"нет",null,null,null,null,null,null,null,"факт",{"$f":"COUNTA(N289:N298)","v":2}]
[null,null,null,null,"ВИД  ↑","№ ЕД  ↑","ГРУЗ","ВЕС","ВИД  ↑","№ ЕД  ↑","ГРУЗ","ВЕС"]
[null,null,null,null,"со стороны депо",null,null,null,"со стороны депо",null,null,null,"ВИД  ↓","№ ЕД  ↓","ГРУЗ","ВЕС"]
[null,null,null,null,null,null,null,null,null,null,null,null,"платформа","439 мульд"]
[null,null,null,null,null,null,null,null,null,null,null,null,"платформа","346 мульд"]
[]
[null,null,null,null,null,null,null,null,null,null,null,null,"нет"]
[]
[null,null,null,null,null,null,null,null,null,null,null,null,"нет"]
[]
[]
[]
[null,null,null,null,null,null,null,null,null,null,null,null,"нет"]

{"sheet":"МПС","index":2,"n_rows":185,"n_cols":15,"rows_kept":185,"cut":false,"hidden":false,"merged":[[184,0,184,4],[142,10,142,14],[149,10,149,14],[150,5,150,9],[155,0,156,4],[173,0,174,4],[173,5,174,9],[123,0,123,4],[124,5,124,9],[130,5,130,9],[136,0,137,4],[136,5,137,9],[136,10,137,14],[108,11,109,11],[108,12,109,12],[112,5,112,9],[112,10,112,14],[120,5,120,9],[122,10,122,14],[91,5,91,9],[92,10,92,14],[99,0,99,4],[100,5,100,9],[106,0,107,4],[106,5,107,9],[106,10,107,14],[90,0,90,4],[52,10,52,14],[62,5,62,9],[63,0,63,4],[75,0,75,4],[76,0,77,4],[76,5,77,9],[76,10,77,14],[78,7,79,7],[78,8,79,8],[82,0,82,4],[82,5,82,9],[82,10,82,14],[51,5,51,9],[14,0,14,4],[18,5,18,9],[25,10,25,14],[28,5,28,9],[37,10,37,14],[38,0,39,4],[38,5,39,9],[38,10,39,14],[42,0,42,4],[42,5,42,9],[44,0,44,4],[44,5,44,9],[44,10,44,14],[6,0,6,4],[6,5,6,9],[6,10,6,14],[0,0,1,4],[0,5,1,9],[0,10,1,14],[4,5,4,9],[4,10,4,14]]}
["8ой путь (весовая)",null,null,null,null,"2я выстовочная",null,null,null,null,"3я выстовочная"]
[]
["всего","до весов 5","за дор-ой 10",null,null,"всего","15","до дорожки 9","за дорожкой 6",null,"всего","22","до дорожки 15","за дорожкой 7 "]
["факт",{"$f":"COUNTA(A8:A14)","v":0},{"$f":"COUNTA(A16:A27)","v":0},null,null,"факт",{"$f":"COUNTA(F8:F18,F20:F27)","v":0},{"$f":"COUNTA(F8:F18)","v":0},{"$f":"COUNTA(F20:F27)","v":0},null,"факт",{"$f":"COUNTA(K8:K25,K27:K36)","v":0},{"$f":"COUNTA(K8:K25)","v":0},{"$f":"COUNTA(K27:K36)","v":0}]
[null,null,null,null,null,"расстановка единиц от выездных ворот",null,null,null,null,"расстановка единиц от выездных ворот"]
["№ МПС  ↓","ГРУЗ  ↓","1ое ВЗВ-Е","2ое ВЗВ-Е","ОПЕРАЦИЯ","№ МПС  ↓","ГРУЗ  ↓","1ое ВЗВ-Е","2ое ВЗВ-Е","ОПЕРАЦИЯ","№ МПС  ↓","ГРУЗ  ↓","1ое ВЗВ-Е","2ое ВЗВ-Е","ОПЕРАЦИЯ"]
["до весов",null,null,null,null,"до дорожки",null,null,null,null,"до дорожки"]
[null,null,null,null,null,null,null,null,null,null,null,null,null,null,"выдан"]
[]
[]
[]
[]
[]
[]
["за дорожкой"]
[]
[]
[]
[null,null,null,null,null,"за дорожкой"]
[]
[]
[]
[]
[]
[]
[null,null,null,null,null,null,null,null,null,null,"за дорожкой"]
[]
[null,null,null,null,null,"№ МПС  ↑","ГРУЗ  ↑","1ое ВЗВ-Е","2ое ВЗВ-Е","ОПЕРАЦИЯ"]
[null,null,null,null,null,"со стороны депо"]
[]
[]
[]
[]
[]
[]
[]
[null,null,null,null,null,null,null,null,null,null,"№ МПС  ↑","ГРУЗ  ↑","1ое ВЗВ-Е","2ое ВЗВ-Е","ОПЕРАЦИЯ"]
[null,null,null,null,null,null,null,null,null,null,"со стороны депо"]
["4я выстовочная",null,null,null,null,"Старая весовая",null,null,null,null,"Котельная"]
[]
["всего","23","до дорожки 15","за дорожкой 8",null,"всего","12","до дорожки 4","за дорожкой 7",null,"всего","до дор-ки 5","за дор-ой 6"]
["факт",{"$f":"COUNTA(A46:A63,A65:A74)","v":0},{"$f":"COUNTA(B46:B63)","v":0},{"$f":"COUNTA(B65:B74)","v":0},null,"факт",{"$f":"COUNTA(F46:F51,F53:F61)","v":0},{"$f":"COUNTA(F46:F51)","v":0},{"$f":"COUNTA(F53:F61)","v":0},null,"факт",{"$f":"COUNTA(K46:K52)","v":0},{"$f":"COUNTA(K54:K61)","v":0}]
["расстановка единиц от выездных ворот",null,null,null,null,"расстановка единиц от выездных ворот"]
["№ МПС  ↓","ГРУЗ  ↓","1ое ВЗВ-Е","2ое ВЗВ-Е","ОПЕРАЦИЯ","№ МПС  ↓","ГРУЗ  ↓","1ое ВЗВ-Е","2ое ВЗВ-Е","ОПЕРАЦИЯ","№ МПС  ↓","ГРУЗ  ↓","1ое ВЗВ-Е","2ое ВЗВ-Е","ОПЕРАЦИЯ"]
["до дорожки",null,null,null,null,"до дорожки",null,null,null,null,"до дорожки"]
[]
[]
[]
[]
[]
[]
[null,null,null,null,null,"за дорожкой"]
[null,null,null,null,null,null,null,null,null,null,"за дорожкой"]
[]
[]
[]
[]
[]
[]
[]
[]
[null,null,null,null,null,"№ МПС  ↑","ГРУЗ  ↑","1ое ВЗВ-Е","2ое ВЗВ-Е","ОПЕРАЦИЯ"]
[null,null,null,null,null,"со стороны депо"]
["за дорожкой"]
[]
[]
[]
[]
[]
[]
[]
[]
[]
[]
["№ МПС  ↑","ГРУЗ  ↑","1ое ВЗВ-Е","2ое ВЗВ-Е","ОПЕРАЦИЯ"]
["со стороны депо"]
["Канава известника",null,null,null,null,"Объезд канавы известника",null,null,null,null,"Старый нефтеслив"]
[]
["всего","в зоне крана 6","до переезда 5","за канавой 3",null,"всего","до перезда 6 ","от заправки до переезда 6 запад","за канавой за переездом 3",null,"всего","до переезда 7","за переездом 10"]
["факт",{"$f":"COUNTA(A92:A99)","v":0},{"$f":"COUNTA(A84:A90)","v":0},{"$f":"COUNTA(A101:A105)","v":0},null,null,null,null,null,null,"факт",{"$f":"COUNTA(K84:K92)","v":0},{"$f":"COUNTA(K94:K106)","v":0}]
[null,null,null,null,null,"факт",{"$f":"COUNTA(F84:F91)","v":0},{"$f":"COUNTA(F93:F100)","v":0},{"$f":"COUNTA(F102:F106)","v":0}]
["№ МПС  ↓","ГРУЗ  ↓","1ое ВЗВ-Е","2ое ВЗВ-Е","ОПЕРАЦИЯ","№ МПС  ↓","ГРУЗ  ↓","1ое ВЗВ-Е","2ое ВЗВ-Е","ОПЕРАЦИЯ","№ МПС  ↓","ГРУЗ  ↓","1ое ВЗВ-Е","2ое ВЗВ-Е","ОПЕРАЦИЯ"]
["до переезда",null,null,null,null,"до переезда",null,null,null,null,"до переезда"]
[]
[]
[]
[]
[]
[]
[]
[" канава (в зоне крана)"]
[null,null,null,null,null,"от заправки до переезда (в западную сторону)"]
[null,null,null,null,null,null,null,null,null,null,"за переездом"]
[]
[]
[]
[]
[]
[]
["за канавой (за переездом)"]
[null,null,null,null,null,"за переездом западная сторона"]
[]
[]
[]
[]
[]
["Буры ",null,null,null,null,"Сушка песка",null,null,null,null,"9ый путь"]
[]
["всего","9","по бурам 6",null,null,"всего","5","3","3","3","всего","от прохода пандуса до переезда 7","по ЛЦ -2 за проходом сушки песка до переезда 10"]
["факт",{"$f":"COUNTA(A113:A123)","v":0},{"$f":"COUNTA(A125:A132)","v":0},null,null,"факт",{"$f":"COUNTA(F114:F120)","v":0},{"$f":"COUNTA(F122:F124)","v":0},{"$f":"COUNTA(F126:F130)","v":0},{"$f":"COUNTA(F132:F136)","v":0}]
[null,null,null,null,null,null,null,null,null,null,"факт",{"$f":"COUNTA(K114:K122)","v":0},{"$f":"COUNTA(K124:K135)","v":0}]
["№ МПС  ↓","ГРУЗ  ↓","1ое ВЗВ-Е","2ое ВЗВ-Е","ОПЕРАЦИЯ","№ МПС  ↓","ГРУЗ  ↓","1ое ВЗВ-Е","2ое ВЗВ-Е","ОПЕРАЦИЯ","№ МПС  ↓","ГРУЗ  ↓","1ое ВЗВ-Е","2ое ВЗВ-Е","ОПЕРАЦИЯ"]
[null,null,null,null,null,"правая сушки песка (5)",null,null,null,null,"от прохода пандуса до переезда"]
[]
[]
[]
[]
[]
[]
[]
[null,null,null,null,null,"левая сушки песка (3)"]
[]
[null,null,null,null,null,null,null,null,null,null,"по ЛЦ -2 за проходом сушки песка до переезда "]
["по бурам "]
[null,null,null,null,null,"по левой от переезда до ворот (3)"]
[]
[]
[]
[]
[]
[null,null,null,null,null,"по правой от переезда до ворот (3)"]
[]
[]
[]
[]
[]
["Склад сбыта",null,null,null,null,"Склад металлов",null,null,null,null,"6ой путь (копровая)"]
[]
["всего","8",null,null,null,"всего","6","по складу 10",null,null,"всего","до тропинки 4","от тропинки 22"]
["факт",{"$f":"COUNTA(A143:A152)","v":0},null,null,null,"факт",{"$f":"COUNTA(F143:F150)","v":0},{"$f":"COUNTA(F152:F163)","v":0},null,null,"факт",{"$f":"COUNTA(K144:K149)","v":0},{"$f":"COUNTA(K151:K173)","v":0}]
[]
["№ МПС  ↓","ГРУЗ  ↓","1ое ВЗВ-Е","2ое ВЗВ-Е","ОПЕРАЦИЯ","№ МПС  ↓","ГРУЗ  ↓","1ое ВЗВ-Е","2ое ВЗВ-Е","ОПЕРАЦИЯ","№ МПС  ↓","ГРУЗ  ↓","1ое ВЗВ-Е","2ое ВЗВ-Е","ОПЕРАЦИЯ"]
[null,null,null,null,null,null,null,null,null,null,"от прохода до тропинки"]
[]
[]
[]
[]
[]
[]
[null,null,null,null,null,null,null,null,null,null,"от тропинки"]
[null,null,null,null,null,"по складу от прохода до переезда"]
[]
[]
[]
[]
["ЛЦ - 1 (Шихтовой)"]
[]
["всего","10","9 в зоне крана"]
["факт",{"$f":"COUNTA(A162:A173)","v":0}]
[]
["№ МПС  ↓","ГРУЗ  ↓","1ое ВЗВ-Е","2ое ВЗВ-Е","ОПЕРАЦИЯ"]
[]
[]
[]
[]
[]
[]
[]
[]
[]
[]
[]
[]
["Склад огнеупоров",null,null,null,null,"по мусорной (за проходом склада огнеупроров)"]
[]
["всего","3","по складу 1",null,null,"всего"]
["факт",{"$f":"COUNTA(A180:A184)","v":0},{"$f":"COUNTA(A186:A187)","v":0},null,null,"факт",{"$f":"COUNTA(F180:F193)","v":0}]
[]
["№ МПС  ↓","ГРУЗ  ↓","1ое ВЗВ-Е","2ое ВЗВ-Е","ОПЕРАЦИЯ","№ МПС  ↓","ГРУЗ  ↓","1ое ВЗВ-Е","2ое ВЗВ-Е","ОПЕРАЦИЯ"]
[]
[]
[]
[]
[]
["по складу "]

{"sheet":"выданный мпс","index":3,"n_rows":1,"n_cols":3,"rows_kept":1,"cut":false,"hidden":false,"merged":[]}
["№ МПС ","ГРУЗ","ДАТА"]

{"sheet":"Лист для копирования","index":4,"n_rows":0,"n_cols":0,"rows_kept":0,"cut":false,"hidden":false,"merged":[]}

{"sheet":"данные","index":5,"n_rows":62,"n_cols":19,"rows_kept":62,"cut":false,"hidden":true,"merged":[]}
["нет","платформа","думпкар","полувагон","контующийся","цистерна","гармет","хоппер","дрезина",null,null,"вес","груз",null,"грузмпс","взвешивание","операции",null,"№мпс"]
[null,"6265 шлак-ни","505","063","030 под из-к","004","3336 боч бам","452","дрезина"]
[null,"1348 шлак-ни ","5609","61113585 БМЗ","001 под из-к","51232437","436 боч бам","451",null,null,null,"старир-н(а)","не известно",null,"порожний","взвешен","ожидание погрузки"]
[null,"335 шлак-ни лц1","5612","61113635 БМЗ","514 под из-к",null,"3334 боч бам",null,null,null,null,"взв-н(а)","брак",null,"песок","старирован","погрузка"]
[null,"5203 хор. пол","13336","2363","55908800 конт",null,"442 боч бам",null,null,null,null,"СТАРИРОВАТЬ","литники",null,"песок в мешках","НЕ взвешен","ожидание выгрузки"]
[null,"392 хор. пол","519","2529","55908800 конт",null,"210 боч лц2",null,null,null,null,"ВЗВЕСИТЬ","шихта",null,"песок кварцевый","НЕ старирован","выгрузка"]
[null,"246 хор. пол","893","2521","5613 конт",null,"1075 боч лц2",null,null,null,null,null,"плита(ы)",null,"бентонит серпухов",null,"ожидание зачистки"]
[null,"224 хор. пол","5604","2528","517 конт",null,"468 боч лц2",null,null,null,null,null,"скрап-шлак",null,"бентонит казах",null,"зачистка"]
[null,"219 хор. пол","1364","2356","621 не конт",null,"437 боч лц2",null,null,null,null,null,"железоотделитель",null,"стекло",null,"ожидание выдачи"]
[null,"16125 хор. пол","337","2527","5608 не конт",null,"5208 боч лц3",null,null,null,null,null,"мусор",null,"известняк",null,"выдан"]
[null,"3338 хор. пол","516","2530","5633 не конт",null,"260 боч лц3",null,null,null,null,null,"жидкое стекло",null,"кирпич"]
[null,"245 хор. пол",null,"2365","5634 не конт",null,"0344 боч лц3",null,null,null,null,null,"литье склд.сбыта",null,"м/лом"]
[null,"272 хор. пол",null,"2522","0505 не конт",null,"293 боч лц3",null,null,null,null,null,"рельс"]
[null,"256 хор. пол",null,"1328","5632 не конт",null,"270 боч лц3",null,null,null,null,null,"рельс для гармет"]
[null,"5208  хор. пол",null,"2364","779 не конт",null,"290 лит лц3",null,null,null,null,null,"мульды пор"]
[null,"6182 хор. пол",null,null,"5607 коправой",null,"261 лит лц3",null,null,null,null,null,"шпалы"]
[null,"288 хор. пол",null,null,"513 ?",null,"222 лит лц3",null,null,null,null,null,"ж/д звено"]
[null,"1349 хор. пол",null,null,"493 ?",null,"255 лит лц3",null,null,null,null,null,"глина красная"]
[null,"252 ?",null,null,"518 ?",null,null,null,null,null,null,null,"мет.констр"]
[null,"377",null,null,"5610 ?",null,null,null,null,null,null,null,"ковши литейные"]
[null,"281",null,null,"5611 земдел",null,null,null,null,null,null,null,"опоки под упоры"]
[null,"248",null,null,"55906549 земдел",null,null,null,null,null,null,null,"грейфер"]
[null,"251",null,null,"55906572 земдел",null,null,null,null,null,null,null,"бочки"]
[null,"0289",null,null,"55906481 земдел",null,null,null,null,null,null,null,"ящики (кроватки)"]
[null,"209",null,null,"55908842 земдел",null,null,null,null,null,null,null,"плита изделие"]
[null,"267",null,null,null,null,null,null,null,null,null,null,"бак от теп-за+ мусор"]
[null,"254"]
[null,"005"]
[null,"271"]
[null,"0250"]
[null,"0295"]
[null,"0282"]
[null,"223"]
[null,"280"]
[null,"441"]
[null,"1341"]
[null,"336"]
[null,"227"]
[null,"259"]
[null,"6125"]
[null,"421"]
[null,"339"]
[null,"262"]
[null,"257"]
[null,"432"]
[null,"380"]
[null,"415 мульд"]
[null,"1015 мульд"]
[null,"390 мульд"]
[null,"429 мульд"]
[null,"391 мульд"]
[null,"439 мульд"]
[null,"346 мульд"]
[null,"343 мульд"]
[null,"1352 мульд"]
[null,"467 мульд"]
[null,"426 мульд"]
[null,"3337 мульд"]
[null,"438 мульд"]
[null,"430 мульд"]
[null,"1351 мульд.разут"]
[null,"266 мульд.слом"]

{"sheet":"ссылки","index":6,"n_rows":39,"n_cols":8,"rows_kept":39,"cut":false,"hidden":true,"merged":[[38,7,60,10],[22,0,23,2],[21,0,21,1],[24,7,33,10],[22,7,23,10],[36,7,37,10],[32,3,35,5],[36,3,37,5],[29,3,31,5],[25,3,26,5],[27,3,28,5],[10,0,10,1],[13,0,14,1],[11,3,22,5],[17,0,18,2],[23,3,24,5],[3,0,3,1],[6,0,6,1],[0,4,1,5],[2,4,3,5],[7,7,8,9],[9,7,20,9],[4,7,5,8],[0,7,1,8],[9,3,10,5],[2,7,3,8]]}
["=ДВССЫЛ(",null,null,"платформа","Условное форматирование: 2я строчка сверху.",null,null,"поиск повторяющихся значений"]
[null,null,null,"думпкар"]
["вид",null,null,"полувагон","текст - содержит - ссылка на данные",null,null,"Условное форматирование: 5я строчка сверху."]
["=данные!$A$1:$E$1",null,null,"контующийся"]
[null,null,null,"цистерна",null,null,null,"повторяющиеся значения в выделенном диапазоне"]
["груз",null,null,"гармет"]
["=ДВССЫЛ(данные!$M$1)",null,null,"хоппер"]
[null,null,null,"дрезина",null,null,null,"макрос для мпс "]
[]
["вес",null,null,"макрос обнуления выпадающего списка, по первому столбцу, с значением в ячейки \"нет\"",null,null,null,"Private Sub Worksheet_Change(ByVal Target As Range)\n    On Error Resume Next\n    a = Target.Column\n    b = Target.Row\n    c = Target.Validation.Type\n    If (a = 1 Or a = 5 Or a = 10 Or a = 15) And b > 6 Then\n        u = Target.Value\n        If u = \"выдан\" Then Range(Cells(b, a), Cells(b, a - 4)).ClearContents\n    End If\nEnd Sub"]
["=ДВССЫЛ(данные!$L$1)"]
[null,null,null,"Private Sub Worksheet_Change(ByVal Target As Range)\n    On Error Resume Next\n    a = Target.Column\n    b = Target.Row\n    c = Target.Validation.Type\n    If (a = 1 Or a = 5 Or a = 9 Or a = 13) And b > 6 And c = 3 Then\n        u = Target.Value\n        If u = \"нет\" Then Range(Cells(b, a + 1), Cells(b, a + 3)).ClearContents\n    End If\nEnd Sub"]
["факт"]
["=СЧЁТЗ( формат ячейки общий"]
[]
[]
[]
["=ГИПЕРССЫЛКА(\"#Местные!A1:D14\";\"ЛЦ - 1 Шихтовой\")"]
[]
[]
[]
["подсчет МПС груз"]
["=СЧЁТЕСЛИ(МПС!B8:МПС!G193;\"песок\")",null,null,null,null,null,null,"макрос для кнопки добавления мпс + таблица бд"]
[null,null,null,"где: (a = 1 Or a = 5 Or a = 9 Or a = 13) номера столбцов "]
[null,null,null,null,null,null,null,"Sub Add_Sell()\n    Worksheets(\"МЕНЮ\").Range(\"E2\").Copy\n    n = Worksheets(\"данные\").Range(\"S1\").Range(\"A100000\").End(xlUp).Row\n    Worksheets(\"данные\").Range(\"S1\").Cells(n + 1, 1).PasteSpecial Paste:=xlPasteValues\n    Worksheets(\"МЕНЮ\").Range(\"E2\").ClearContents\nEnd Sub"]
[null,null,null,"где: And b > 6 начиная с 7 строки"]
[]
[null,null,null,"где: Cells(b, a + 3)) количество обнуляемых столбцов"]
[]
[null,null,null," If (a = 1 Or a = 5 Or a = 9 Or a = 13) And b > 6 And c = 3 Then где: And c = 3 - проверка наличия выпадающего списка"]
[]
[]
[null,null,null,"If (a = 1 Or a = 5 Or a = 9 Or a = 13) And b > 6 And Then удалить строчку c = Target.Validation.Type тогда без проверки выпадающего списка сносит все данные в строке"]
[]
[]
[]
[null,null,null,"Cells(b, a + 1) удалить +1 будет очищать так же ячейку со словом \"нет\"",null,null,null,"макрос для удаления из бд мпс"]
[]
[null,null,null,null,null,null,null,"Private Sub Worksheet_Change(ByVal Target As Range)\n    On Error Resume Next\n    a = Target.Column\n    b = Target.Row\n    c = Target.Validation.Type\n    If (a = 5 Or a = 10 Or a = 15) And b > 6 And c = 3 Then\n        u = Target.Value\n        If u = \"выдан\" Then\n            Sheets(\"выданный мпс\").Range(\"a3:c3\").Insert Shift:=xlDown\n            Sheets(\"выданный мпс\").Range(\"a3:c3\") = Range(Cells(b, a - 4), Cells(b, a - 3)).Value\n            Sheets(\"выданный мпс\").Range(\"c3\").NumberFormat = \"dd/mm/yyyy - h:mm:ss;@\"\n            Sheets(\"выданный мпс\").Range(\"c3\") = Now\n            Sheets(\"выданный мпс\").Range(\"a202:c202\").Clear\n            g = Sheets(\"данные\").Range(\"№мпс\").Find(What:=Cells(b, a - 4).Value).Address\n            Sheets(\"данные\").Range(g).Delete\n            Range(Cells(b, a), Cells(b, a - 4)).ClearContents\n        End If\n    End If\nEnd Sub"]